[Event "January 2 Early 2024"]
[Site "https://www.chess.com"]
[Date "2024.01.02"]
[Round "9"]
[White "Petre, Nad-Titus"]
[Black "Lacasa Diaz, Josep Anton"]
[Result "0-1"]
[Board "128"]
[TimeControl "180+1"]
[WhiteFideId "1204165"]
[BlackFideId "2203375"]
[WhiteElo "2480"]
[BlackElo "2319"]
[WhiteTeam "ROU"]
[BlackTeam "ESP"]
[WhiteClock "0:00:00"]
[BlackClock "0:00:13"]

1. e4 {[%clk 0:03:00]}  g6 {[%clk 0:02:56]} 2. d4 {[%clk 0:03:00]}  Bg7 {[%clk 0:02:56]} 3. Nc3 {[%clk 0:03:00]}  d6 {[%clk 0:02:57]} 4. f4 {[%clk 0:02:55]}  a6 {[%clk 0:02:57]} 5. Nf3 {[%clk 0:02:51]}  b5 {[%clk 0:02:56]} 6. Bd3 {[%clk 0:02:52]}  Bb7 {[%clk 0:02:56]} 7. O-O {[%clk 0:02:49]}  Nd7 {[%clk 0:02:56]} 8. a4 {[%clk 0:02:46]}  b4 {[%clk 0:02:53]} 9. Ne2 {[%clk 0:02:47]}  c5 {[%clk 0:02:51]} 10. c3 {[%clk 0:02:45]}  bxc3 {[%clk 0:02:34]} 11. bxc3 {[%clk 0:02:45]}  Qc7 {[%clk 0:02:27]} 12. Rb1 {[%clk 0:02:34]}  c4 {[%clk 0:02:14]} 13. Bc2 {[%clk 0:02:11]}  Ngf6 {[%clk 0:02:10]} 14. e5 {[%clk 0:02:04]}  Nd5 {[%clk 0:02:09]} 15. Ng5 {[%clk 0:01:43]}  h6 {[%clk 0:02:01]} 16. Nxf7 {[%clk 0:01:38]}  Kxf7 {[%clk 0:02:00]} 17. e6+ {[%clk 0:01:28]}  Kxe6 {[%clk 0:01:58]} 18. f5+ {[%clk 0:01:24]}  Kf7 {[%clk 0:01:52]} 19. fxg6+ {[%clk 0:01:19]}  Ke8 {[%clk 0:01:52]} 20. Ng3 {[%clk 0:01:15]}  N7f6 {[%clk 0:01:41]} 21. Qe1 {[%clk 0:01:08]}  Kd8 {[%clk 0:01:16]} 22. Nf5 {[%clk 0:01:06]}  Rg8 {[%clk 0:01:16]} 23. Bxh6 {[%clk 0:01:02]}  Bxh6 {[%clk 0:01:11]} 24. Nxh6 {[%clk 0:01:03]}  Rg7 {[%clk 0:01:07]} 25. Qe6 {[%clk 0:00:53]}  Qc6 {[%clk 0:00:54]} 26. Rf2 {[%clk 0:00:28]}  Nf4 {[%clk 0:00:42]} 27. Nf7+ {[%clk 0:00:25]}  Rxf7 {[%clk 0:00:38]} 28. Qxf7 {[%clk 0:00:24]}  Nh3+ {[%clk 0:00:37]} 29. Kf1 {[%clk 0:00:25]}  Nxf2 {[%clk 0:00:37]} 30. Rxb7 {[%clk 0:00:25]}  Qxb7 {[%clk 0:00:27]} 31. g7 {[%clk 0:00:19]}  Nd3 {[%clk 0:00:22]} 32. Bd1 {[%clk 0:00:12]}  Kd7 {[%clk 0:00:17]} 33. Qxc4 {[%clk 0:00:07]}  Qe4 {[%clk 0:00:14]} 34. Be2 {[%clk 0:00:02]}  Nf4 {[%clk 0:00:14]} 35. Bf3 {[%clk 0:00:01]}  Qb1+ {[%clk 0:00:14]} 36. Kf2 {[%clk 0:00:02]}  Rc8 {[%clk 0:00:14]} 37. Qxa6 {[%clk 0:00:01]}  Qc2+ {[%clk 0:00:13]} 38. Kg3 {[%clk 0:00:01]}  N4h5+ {[%clk 0:00:14]} 39. Kh4 {[%clk 0:00:01]}  Nxg7 {[%clk 0:00:13]} 40. Qa7+ {[%clk 0:00:00]}  Ke8 {[%clk 0:00:13]} 0-1

[Event "January 2 Early 2024"]
[Site "https://www.chess.com"]
[Date "2024.01.02"]
[Round "9"]
[White "Zampronha, Wladimir Camilo"]
[Black "Tikhonov, Viacheslav"]
[Result "0-1"]
[Board "130"]
[TimeControl "180+1"]
[WhiteFideId "2103087"]
[BlackFideId "44196407"]
[WhiteElo "2312"]
[BlackElo "2469"]
[WhiteTeam "BRA"]
[BlackTeam "RUS"]
[WhiteClock "0:02:39"]
[BlackClock "0:02:30"]

1. e4 {[%clk 0:03:00]}  c5 {[%clk 0:03:00]} 2. Nf3 {[%clk 0:02:57]}  g6 {[%clk 0:03:00]} 3. d4 {[%clk 0:02:56]}  cxd4 {[%clk 0:03:01]} 4. Nxd4 {[%clk 0:02:57]}  Nc6 {[%clk 0:03:01]} 5. Nc3 {[%clk 0:02:56]}  Bg7 {[%clk 0:03:00]} 6. Be3 {[%clk 0:02:56]}  Nf6 {[%clk 0:03:00]} 7. Bc4 {[%clk 0:02:57]}  Qa5 {[%clk 0:02:59]} 8. Bb3 {[%clk 0:02:52]}  Nxe4 {[%clk 0:02:58]} 9. O-O {[%clk 0:02:51]}  Nxc3 {[%clk 0:02:56]} 10. bxc3 {[%clk 0:02:51]}  Qxc3 {[%clk 0:02:51]} 11. Nb5 {[%clk 0:02:51]}  Qa5 {[%clk 0:02:33]} 12. c3 {[%clk 0:02:39]}  Qxb5 {[%clk 0:02:30]} 0-1

[Event "January 2 Early 2024"]
[Site "https://www.chess.com"]
[Date "2024.01.02"]
[Round "9"]
[White "Ambrogi, Agustin"]
[Black "Blokhin, Sofia"]
[Result "1-0"]
[Board "132"]
[TimeControl "180+1"]
[WhiteFideId "170933"]
[BlackFideId "4508190"]
[WhiteElo "2446"]
[BlackElo "2295"]
[WhiteTeam "ARG"]
[BlackTeam "EST"]
[WhiteClock "0:01:23"]
[BlackClock "0:00:38"]

1. e4 {[%clk 0:03:00]}  c5 {[%clk 0:02:59]} 2. Nc3 {[%clk 0:03:00]}  e6 {[%clk 0:02:58]} 3. g3 {[%clk 0:02:59]}  g6 {[%clk 0:02:58]} 4. Bg2 {[%clk 0:02:59]}  Bg7 {[%clk 0:02:58]} 5. f4 {[%clk 0:02:59]}  Nc6 {[%clk 0:02:57]} 6. d3 {[%clk 0:02:59]}  Nge7 {[%clk 0:02:57]} 7. Nf3 {[%clk 0:02:59]}  O-O {[%clk 0:02:57]} 8. O-O {[%clk 0:02:59]}  d5 {[%clk 0:02:56]} 9. Bd2 {[%clk 0:02:54]}  b6 {[%clk 0:02:54]} 10. a3 {[%clk 0:02:49]}  Bb7 {[%clk 0:02:54]} 11. Ng5 {[%clk 0:02:45]}  h6 {[%clk 0:02:52]} 12. Nh3 {[%clk 0:02:44]}  d4 {[%clk 0:02:45]} 13. Ne2 {[%clk 0:02:44]}  b5 {[%clk 0:02:42]} 14. g4 {[%clk 0:02:43]}  f5 {[%clk 0:02:40]} 15. Ng3 {[%clk 0:02:42]}  c4 {[%clk 0:02:34]} 16. Bb4 {[%clk 0:02:21]}  a5 {[%clk 0:02:27]} 17. Bc5 {[%clk 0:01:53]}  Rc8 {[%clk 0:02:21]} 18. gxf5 {[%clk 0:01:47]}  exf5 {[%clk 0:02:19]} 19. exf5 {[%clk 0:01:47]}  gxf5 {[%clk 0:02:13]} 20. Qh5 {[%clk 0:01:47]}  Rf6 {[%clk 0:02:06]} 21. Bxe7 {[%clk 0:01:45]}  Qxe7 {[%clk 0:02:01]} 22. Nxf5 {[%clk 0:01:45]}  Rxf5 {[%clk 0:01:38]} 23. Qxf5 {[%clk 0:01:44]}  Qe3+ {[%clk 0:01:38]} 24. Kh1 {[%clk 0:01:44]}  Ne7 {[%clk 0:01:33]} 25. Qg4 {[%clk 0:01:36]}  Rc6 {[%clk 0:01:19]} 26. Rae1 {[%clk 0:01:33]}  Qd2 {[%clk 0:01:13]} 27. Rxe7 {[%clk 0:01:29]}  Qxg2+ {[%clk 0:00:44]} 28. Qxg2 {[%clk 0:01:26]}  Rb6 {[%clk 0:00:43]} 29. Rxg7+ {[%clk 0:01:24]}  Kf8 {[%clk 0:00:38]} 30. Rxb7 {[%clk 0:01:23]} 1-0

[Event "January 2 Early 2024"]
[Site "https://www.chess.com"]
[Date "2024.01.02"]
[Round "9"]
[White "Martin, Lewis"]
[Black "Bashirli, Saadat"]
[Result "0-1"]
[Board "133"]
[TimeControl "180+1"]
[WhiteFideId "410551"]
[BlackFideId "13429990"]
[WhiteElo "2293"]
[BlackElo "2435"]
[WhiteTeam "ENG"]
[BlackTeam "AZE"]
[WhiteClock "0:00:02"]
[BlackClock "0:00:05"]

1. c4 {[%clk 0:03:00]}  e6 {[%clk 0:02:58]} 2. g3 {[%clk 0:03:00]}  d5 {[%clk 0:02:57]} 3. Bg2 {[%clk 0:03:00]}  c6 {[%clk 0:02:55]} 4. Nf3 {[%clk 0:02:54]}  Nf6 {[%clk 0:02:54]} 5. O-O {[%clk 0:02:53]}  Bd6 {[%clk 0:02:53]} 6. d4 {[%clk 0:02:46]}  O-O {[%clk 0:02:52]} 7. Nc3 {[%clk 0:02:45]}  Nbd7 {[%clk 0:02:45]} 8. cxd5 {[%clk 0:02:39]}  exd5 {[%clk 0:02:44]} 9. Bf4 {[%clk 0:02:29]}  Qe7 {[%clk 0:02:33]} 10. a3 {[%clk 0:02:23]}  Nb6 {[%clk 0:02:22]} 11. Bxd6 {[%clk 0:02:15]}  Qxd6 {[%clk 0:02:19]} 12. Ne5 {[%clk 0:02:15]}  Ng4 {[%clk 0:02:09]} 13. Nxg4 {[%clk 0:02:05]}  Bxg4 {[%clk 0:02:07]} 14. f3 {[%clk 0:02:06]}  Bd7 {[%clk 0:02:01]} 15. e4 {[%clk 0:02:06]}  dxe4 {[%clk 0:01:56]} 16. fxe4 {[%clk 0:02:06]}  Rad8 {[%clk 0:01:53]} 17. Qd3 {[%clk 0:01:57]}  Be6 {[%clk 0:01:51]} 18. Rfd1 {[%clk 0:01:46]}  Nc4 {[%clk 0:01:44]} 19. Rab1 {[%clk 0:01:27]}  b5 {[%clk 0:01:41]} 20. h3 {[%clk 0:01:08]}  Rfe8 {[%clk 0:01:31]} 21. a4 {[%clk 0:01:03]}  a6 {[%clk 0:01:27]} 22. axb5 {[%clk 0:01:03]}  axb5 {[%clk 0:01:24]} 23. b3 {[%clk 0:01:03]}  Nb6 {[%clk 0:01:22]} 24. d5 {[%clk 0:00:57]}  Qc5+ {[%clk 0:01:17]} 25. Qd4 {[%clk 0:00:53]}  Qxd4+ {[%clk 0:01:08]} 26. Rxd4 {[%clk 0:00:54]}  cxd5 {[%clk 0:01:02]} 27. exd5 {[%clk 0:00:54]}  Bf5 {[%clk 0:00:56]} 28. Rbd1 {[%clk 0:00:47]}  Re3 {[%clk 0:00:53]} 29. Nxb5 {[%clk 0:00:46]}  Rxb3 {[%clk 0:00:51]} 30. Na7 {[%clk 0:00:40]}  Rxg3 {[%clk 0:00:48]} 31. Kh2 {[%clk 0:00:37]}  Re3 {[%clk 0:00:41]} 32. Nc6 {[%clk 0:00:36]}  Rd6 {[%clk 0:00:40]} 33. Rb4 {[%clk 0:00:33]}  Nd7 {[%clk 0:00:33]} 34. Ra1 {[%clk 0:00:25]}  h6 {[%clk 0:00:31]} 35. Ra8+ {[%clk 0:00:19]}  Kh7 {[%clk 0:00:30]} 36. Rf4 {[%clk 0:00:18]}  Bg6 {[%clk 0:00:21]} 37. Rd8 {[%clk 0:00:13]}  Re2 {[%clk 0:00:17]} 38. Nd4 {[%clk 0:00:13]}  Re7 {[%clk 0:00:14]} 39. Nf5 {[%clk 0:00:12]}  Bxf5 {[%clk 0:00:14]} 40. Rxf5 {[%clk 0:00:12]}  g6 {[%clk 0:00:14]} 41. Rf1 {[%clk 0:00:11]}  Rb6 {[%clk 0:00:12]} 42. Rc1 {[%clk 0:00:10]}  Ne5 {[%clk 0:00:11]} 43. Rcc8 {[%clk 0:00:10]}  g5 {[%clk 0:00:10]} 44. d6 {[%clk 0:00:10]}  Rd7 {[%clk 0:00:08]} 45. Be4+ {[%clk 0:00:11]}  Kg7 {[%clk 0:00:08]} 46. Rxd7 {[%clk 0:00:10]}  Nxd7 {[%clk 0:00:08]} 47. Rc6 {[%clk 0:00:10]}  Rb4 {[%clk 0:00:05]} 48. Bd5 {[%clk 0:00:09]}  Rb2+ {[%clk 0:00:05]} 49. Kg3 {[%clk 0:00:09]}  Ne5 {[%clk 0:00:05]} 50. Rc7 {[%clk 0:00:09]}  Kf6 {[%clk 0:00:05]} 51. d7 {[%clk 0:00:09]}  Ke7 {[%clk 0:00:05]} 52. d8=Q+ {[%clk 0:00:03]}  Kxd8 {[%clk 0:00:05]} 53. Rc5 {[%clk 0:00:01]}  f5 {[%clk 0:00:05]} 54. Ra5 {[%clk 0:00:02]}  f4# {[%clk 0:00:05]} 0-1

[Event "January 2 Early 2024"]
[Site "https://www.chess.com"]
[Date "2024.01.02"]
[Round "9"]
[White "Valle Luis, Leo"]
[Black "Onslow, Alfie"]
[Result "0-1"]
[Board "134"]
[TimeControl "180+1"]
[WhiteFideId "54577187"]
[BlackFideId "436976"]
[WhiteElo "2425"]
[BlackElo "2287"]
[WhiteTeam "ESP"]
[BlackTeam "ENG"]
[WhiteClock "0:00:06"]
[BlackClock "0:00:08"]

1. e4 {[%clk 0:02:57]}  c5 {[%clk 0:02:59]} 2. Nf3 {[%clk 0:02:54]}  Nc6 {[%clk 0:02:59]} 3. d4 {[%clk 0:02:52]}  cxd4 {[%clk 0:02:59]} 4. Nxd4 {[%clk 0:02:53]}  e5 {[%clk 0:02:59]} 5. Nb5 {[%clk 0:02:54]}  d6 {[%clk 0:02:59]} 6. c4 {[%clk 0:02:54]}  Be6 {[%clk 0:02:57]} 7. N1c3 {[%clk 0:02:54]}  a6 {[%clk 0:02:55]} 8. Na3 {[%clk 0:02:54]}  g6 {[%clk 0:02:52]} 9. Be3 {[%clk 0:02:50]}  Bg7 {[%clk 0:02:41]} 10. Be2 {[%clk 0:02:50]}  Nf6 {[%clk 0:02:38]} 11. O-O {[%clk 0:02:50]}  O-O {[%clk 0:02:34]} 12. Nc2 {[%clk 0:02:49]}  Rc8 {[%clk 0:02:30]} 13. Rb1 {[%clk 0:02:47]}  Qe7 {[%clk 0:02:17]} 14. b4 {[%clk 0:02:36]}  Nd7 {[%clk 0:02:15]} 15. f3 {[%clk 0:02:31]}  f5 {[%clk 0:01:55]} 16. Nd5 {[%clk 0:02:30]}  Bxd5 {[%clk 0:01:54]} 17. Qxd5+ {[%clk 0:02:29]}  Kh8 {[%clk 0:01:44]} 18. Rfd1 {[%clk 0:02:01]}  Nf6 {[%clk 0:01:43]} 19. Qd3 {[%clk 0:02:01]}  fxe4 {[%clk 0:01:18]} 20. fxe4 {[%clk 0:02:02]}  Rcd8 {[%clk 0:01:18]} 21. Bf3 {[%clk 0:01:56]}  Qe6 {[%clk 0:01:05]} 22. h3 {[%clk 0:01:49]}  h6 {[%clk 0:01:01]} 23. a4 {[%clk 0:01:30]}  Kh7 {[%clk 0:00:59]} 24. b5 {[%clk 0:01:30]}  axb5 {[%clk 0:00:25]} 25. cxb5 {[%clk 0:01:31]}  Ne7 {[%clk 0:00:23]} 26. Nb4 {[%clk 0:01:18]}  Rd7 {[%clk 0:00:19]} 27. Nd5 {[%clk 0:01:06]}  Nexd5 {[%clk 0:00:17]} 28. exd5 {[%clk 0:01:07]}  Qf5 {[%clk 0:00:14]} 29. Qxf5 {[%clk 0:01:06]}  gxf5 {[%clk 0:00:15]} 30. a5 {[%clk 0:01:06]}  Ra8 {[%clk 0:00:14]} 31. Ra1 {[%clk 0:01:06]}  e4 {[%clk 0:00:13]} 32. Be2 {[%clk 0:01:03]}  Nxd5 {[%clk 0:00:12]} 33. Bd4 {[%clk 0:00:57]}  Nc3 {[%clk 0:00:11]} 34. Bxg7 {[%clk 0:00:42]}  Kxg7 {[%clk 0:00:10]} 35. Rd2 {[%clk 0:00:38]}  Nxe2+ {[%clk 0:00:10]} 36. Rxe2 {[%clk 0:00:39]}  d5 {[%clk 0:00:10]} 37. Rd2 {[%clk 0:00:32]}  Kf6 {[%clk 0:00:09]} 38. a6 {[%clk 0:00:25]}  bxa6 {[%clk 0:00:09]} 39. bxa6 {[%clk 0:00:22]}  Ke5 {[%clk 0:00:09]} 40. Ra5 {[%clk 0:00:21]}  Raa7 {[%clk 0:00:09]} 41. Kf2 {[%clk 0:00:19]}  Rd6 {[%clk 0:00:09]} 42. g3 {[%clk 0:00:16]}  Raxa6 {[%clk 0:00:07]} 43. Rdxd5+ {[%clk 0:00:16]}  Rxd5 {[%clk 0:00:07]} 44. Rxa6 {[%clk 0:00:17]}  Rd2+ {[%clk 0:00:07]} 45. Ke3 {[%clk 0:00:17]}  Rd3+ {[%clk 0:00:08]} 46. Kf2 {[%clk 0:00:17]}  Rf3+ {[%clk 0:00:08]} 47. Kg2 {[%clk 0:00:18]}  h5 {[%clk 0:00:05]} 48. Ra5+ {[%clk 0:00:18]}  Kf6 {[%clk 0:00:04]} 49. Ra6+ {[%clk 0:00:17]}  Ke5 {[%clk 0:00:05]} 50. Ra5+ {[%clk 0:00:17]}  Kd4 {[%clk 0:00:04]} 51. Ra4+ {[%clk 0:00:17]}  Ke3 {[%clk 0:00:05]} 52. Ra3+ {[%clk 0:00:17]}  Ke2 {[%clk 0:00:05]} 53. Ra2+ {[%clk 0:00:17]}  Ke1 {[%clk 0:00:06]} 54. Ra1+ {[%clk 0:00:18]}  Kd2 {[%clk 0:00:06]} 55. Ra2+ {[%clk 0:00:18]}  Ke3 {[%clk 0:00:06]} 56. Ra3+ {[%clk 0:00:18]}  Ke2 {[%clk 0:00:06]} 57. Ra2+ {[%clk 0:00:18]}  Kd1 {[%clk 0:00:07]} 58. Ra5 {[%clk 0:00:13]}  h4 {[%clk 0:00:06]} 59. gxh4 {[%clk 0:00:12]}  f4 {[%clk 0:00:06]} 60. Ra1+ {[%clk 0:00:12]}  Kd2 {[%clk 0:00:06]} 61. Ra2+ {[%clk 0:00:13]}  Kc1 {[%clk 0:00:06]} 62. Ra1+ {[%clk 0:00:12]}  Kd2 {[%clk 0:00:06]} 63. Ra2+ {[%clk 0:00:13]}  Kc1 {[%clk 0:00:06]} 64. Re2 {[%clk 0:00:11]}  Rg3+ {[%clk 0:00:05]} 65. Kh2 {[%clk 0:00:11]}  e3 {[%clk 0:00:06]} 66. h5 {[%clk 0:00:12]}  Kd1 {[%clk 0:00:06]} 67. Ra2 {[%clk 0:00:10]}  e2 {[%clk 0:00:06]} 68. Ra1+ {[%clk 0:00:11]}  Kd2 {[%clk 0:00:06]} 69. Ra2+ {[%clk 0:00:12]}  Ke3 {[%clk 0:00:06]} 70. Ra3+ {[%clk 0:00:11]}  Kf2 {[%clk 0:00:07]} 71. Ra2 {[%clk 0:00:12]}  Rg2+ {[%clk 0:00:06]} 72. Kh1 {[%clk 0:00:12]}  Rg1+ {[%clk 0:00:07]} 73. Kh2 {[%clk 0:00:13]}  Rg2+ {[%clk 0:00:06]} 74. Kh1 {[%clk 0:00:13]}  f3 {[%clk 0:00:06]} 75. h6 {[%clk 0:00:11]}  Rg1+ {[%clk 0:00:06]} 76. Kh2 {[%clk 0:00:11]}  Rg2+ {[%clk 0:00:07]} 77. Kh1 {[%clk 0:00:11]}  Kg3 {[%clk 0:00:07]} 78. Ra1 {[%clk 0:00:05]}  Rh2+ {[%clk 0:00:07]} 79. Kg1 {[%clk 0:00:06]}  f2# {[%clk 0:00:08]} 0-1

[Event "January 2 Early 2024"]
[Site "https://www.chess.com"]
[Date "2024.01.02"]
[Round "9"]
[White "Jovic, Stanoje"]
[Black "Monpeurt, Cyrielle"]
[Result "1-0"]
[Board "135"]
[TimeControl "180+1"]
[WhiteFideId "905020"]
[BlackFideId "677400"]
[WhiteElo "2421"]
[BlackElo "2285"]
[WhiteTeam "SRB"]
[BlackTeam "FRA"]
[WhiteClock "0:02:32"]
[BlackClock "0:02:10"]

1. c4 {[%clk 0:03:00]}  c5 {[%clk 0:02:57]} 2. g3 {[%clk 0:03:00]}  Nc6 {[%clk 0:02:57]} 3. Bg2 {[%clk 0:03:01]}  g6 {[%clk 0:02:58]} 4. Nc3 {[%clk 0:03:01]}  Bg7 {[%clk 0:02:58]} 5. Nf3 {[%clk 0:03:01]}  e6 {[%clk 0:02:59]} 6. O-O {[%clk 0:03:00]}  Nge7 {[%clk 0:02:59]} 7. d4 {[%clk 0:03:01]}  cxd4 {[%clk 0:02:58]} 8. Nb5 {[%clk 0:03:01]}  d5 {[%clk 0:02:56]} 9. cxd5 {[%clk 0:03:01]}  Nxd5 {[%clk 0:02:53]} 10. Nbxd4 {[%clk 0:03:00]}  Nxd4 {[%clk 0:02:51]} 11. Nxd4 {[%clk 0:03:00]}  O-O {[%clk 0:02:51]} 12. e4 {[%clk 0:03:01]}  Nb6 {[%clk 0:02:29]} 13. Nb3 {[%clk 0:03:01]}  Bd7 {[%clk 0:02:24]} 14. Qe2 {[%clk 0:03:00]}  Bc6 {[%clk 0:02:23]} 15. Be3 {[%clk 0:02:47]}  Bxb2 {[%clk 0:02:20]} 16. Qxb2 {[%clk 0:02:45]}  Nc4 {[%clk 0:02:16]} 17. Qd4 {[%clk 0:02:38]}  Nxe3 {[%clk 0:02:13]} 18. Qxe3 {[%clk 0:02:38]}  Qf6 {[%clk 0:02:13]} 19. e5 {[%clk 0:02:37]}  Qf5 {[%clk 0:02:13]} 20. Bxc6 {[%clk 0:02:36]}  bxc6 {[%clk 0:02:14]} 21. Nd4 {[%clk 0:02:35]}  Qh5 {[%clk 0:02:13]} 22. Nxc6 {[%clk 0:02:33]}  Rac8 {[%clk 0:02:10]} 23. Ne7+ {[%clk 0:02:32]} 1-0

[Event "January 2 Early 2024"]
[Site "https://www.chess.com"]
[Date "2024.01.02"]
[Round "9"]
[White "Rodriguez Avila, Alvaro"]
[Black "Seletsky, Grigory"]
[Result "1/2-1/2"]
[Board "136"]
[TimeControl "180+1"]
[WhiteFideId "24570249"]
[BlackFideId "14112191"]
[WhiteElo "2277"]
[BlackElo "2418"]
[WhiteTeam "ESP"]
[BlackTeam "UKR"]
[WhiteClock "0:00:06"]
[BlackClock "0:00:18"]

1. e4 {[%clk 0:03:00]}  e6 {[%clk 0:02:58]} 2. d4 {[%clk 0:03:00]}  d5 {[%clk 0:02:58]} 3. e5 {[%clk 0:03:00]}  c5 {[%clk 0:02:57]} 4. c3 {[%clk 0:03:01]}  Qd7 {[%clk 0:02:54]} 5. h4 {[%clk 0:02:52]}  b6 {[%clk 0:02:54]} 6. h5 {[%clk 0:02:51]}  h6 {[%clk 0:02:54]} 7. Qg4 {[%clk 0:02:40]}  Ba6 {[%clk 0:02:54]} 8. Bxa6 {[%clk 0:02:41]}  Nxa6 {[%clk 0:02:54]} 9. Nf3 {[%clk 0:02:39]}  cxd4 {[%clk 0:02:54]} 10. Nxd4 {[%clk 0:02:30]}  Ne7 {[%clk 0:02:54]} 11. Nd2 {[%clk 0:02:26]}  Nc5 {[%clk 0:02:52]} 12. O-O {[%clk 0:02:22]}  Nd3 {[%clk 0:02:51]} 13. N2f3 {[%clk 0:02:20]}  Nc6 {[%clk 0:02:47]} 14. Nxc6 {[%clk 0:02:15]}  Qxc6 {[%clk 0:02:48]} 15. Rd1 {[%clk 0:02:03]}  Qc4 {[%clk 0:02:28]} 16. Qg3 {[%clk 0:01:47]}  Bc5 {[%clk 0:02:05]} 17. Nd4 {[%clk 0:01:30]}  Nxc1 {[%clk 0:01:51]} 18. Qxg7 {[%clk 0:01:14]}  Rf8 {[%clk 0:01:43]} 19. Raxc1 {[%clk 0:01:11]}  O-O-O {[%clk 0:01:38]} 20. Qg3 {[%clk 0:00:59]}  Rg8 {[%clk 0:01:30]} 21. Qd3 {[%clk 0:00:59]}  Qxd3 {[%clk 0:01:10]} 22. Rxd3 {[%clk 0:00:59]}  Rg5 {[%clk 0:01:10]} 23. f4 {[%clk 0:00:41]}  Rxh5 {[%clk 0:01:08]} 24. b4 {[%clk 0:00:37]}  Bf8 {[%clk 0:00:50]} 25. Rg3 {[%clk 0:00:30]}  Rh4 {[%clk 0:00:44]} 26. Rf1 {[%clk 0:00:31]}  Kd7 {[%clk 0:00:20]} 27. f5 {[%clk 0:00:19]}  Be7 {[%clk 0:00:21]} 28. fxe6+ {[%clk 0:00:17]}  fxe6 {[%clk 0:00:20]} 29. Rf7 {[%clk 0:00:18]}  Rf8 {[%clk 0:00:19]} 30. Rh7 {[%clk 0:00:15]}  Re8 {[%clk 0:00:15]} 31. Rgg7 {[%clk 0:00:15]}  a5 {[%clk 0:00:14]} 32. a3 {[%clk 0:00:14]}  axb4 {[%clk 0:00:13]} 33. axb4 {[%clk 0:00:15]}  Rh5 {[%clk 0:00:13]} 34. Nf3 {[%clk 0:00:14]}  Rf5 {[%clk 0:00:13]} 35. Kh2 {[%clk 0:00:09]}  Rf4 {[%clk 0:00:12]} 36. Kg3 {[%clk 0:00:08]}  Rc4 {[%clk 0:00:12]} 37. Rxh6 {[%clk 0:00:07]}  Rxc3 {[%clk 0:00:12]} 38. Kg4 {[%clk 0:00:07]}  Rc4+ {[%clk 0:00:13]} 39. Kh5 {[%clk 0:00:03]}  Rxb4 {[%clk 0:00:13]} 40. g4 {[%clk 0:00:03]}  Re4 {[%clk 0:00:14]} 41. g5 {[%clk 0:00:02]}  b5 {[%clk 0:00:14]} 42. g6 {[%clk 0:00:02]}  b4 {[%clk 0:00:15]} 43. Rhh7 {[%clk 0:00:01]}  b3 {[%clk 0:00:15]} 44. Rxe7+ {[%clk 0:00:01]}  Rxe7 {[%clk 0:00:14]} 45. Rxe7+ {[%clk 0:00:02]}  Kxe7 {[%clk 0:00:14]} 46. g7 {[%clk 0:00:02]}  b2 {[%clk 0:00:15]} 47. g8=Q {[%clk 0:00:02]}  b1=Q {[%clk 0:00:15]} 48. Qg7+ {[%clk 0:00:02]}  Kd8 {[%clk 0:00:14]} 49. Qg8+ {[%clk 0:00:03]}  Kc7 {[%clk 0:00:15]} 50. Qf7+ {[%clk 0:00:03]}  Kb8 {[%clk 0:00:16]} 51. Qe8+ {[%clk 0:00:03]}  Ka7 {[%clk 0:00:16]} 52. Qd7+ {[%clk 0:00:04]}  Kb8 {[%clk 0:00:16]} 53. Qd6+ {[%clk 0:00:04]}  Ka7 {[%clk 0:00:17]} 54. Qc7+ {[%clk 0:00:04]}  Ka8 {[%clk 0:00:17]} 55. Qc8+ {[%clk 0:00:04]}  Ka7 {[%clk 0:00:18]} 56. Qd7+ {[%clk 0:00:05]}  Ka8 {[%clk 0:00:18]} 57. Qc8+ {[%clk 0:00:05]}  Ka7 {[%clk 0:00:18]} 58. Qd7+ {[%clk 0:00:06]} 1/2-1/2

[Event "January 2 Early 2024"]
[Site "https://www.chess.com"]
[Date "2024.01.02"]
[Round "9"]
[White "Nemec, Jachym"]
[Black "Cueto, Jonny"]
[Result "1-0"]
[Board "137"]
[TimeControl "180+1"]
[WhiteFideId "23716525"]
[BlackFideId "3300145"]
[WhiteElo "2416"]
[BlackElo "2261"]
[WhiteTeam "CZE"]
[BlackTeam "BOL"]
[WhiteClock "0:01:15"]
[BlackClock "0:00:00"]

1. d4 {[%clk 0:03:00]}  Nf6 {[%clk 0:02:59]} 2. c4 {[%clk 0:03:00]}  d6 {[%clk 0:02:59]} 3. Nc3 {[%clk 0:02:59]}  e5 {[%clk 0:02:59]} 4. Nf3 {[%clk 0:02:57]}  e4 {[%clk 0:02:59]} 5. Ng5 {[%clk 0:02:56]}  Qe7 {[%clk 0:02:59]} 6. Qc2 {[%clk 0:02:51]}  Bf5 {[%clk 0:02:55]} 7. f3 {[%clk 0:02:50]}  Nc6 {[%clk 0:02:27]} 8. fxe4 {[%clk 0:02:27]}  Nxd4 {[%clk 0:02:27]} 9. Qd3 {[%clk 0:02:24]}  Nxe4 {[%clk 0:01:34]} 10. Ngxe4 {[%clk 0:02:21]}  Nc6 {[%clk 0:01:35]} 11. Nxd6+ {[%clk 0:02:17]}  Qxd6 {[%clk 0:01:31]} 12. Qxf5 {[%clk 0:02:16]}  Be7 {[%clk 0:01:26]} 13. Qd3 {[%clk 0:02:08]}  Qf6 {[%clk 0:01:19]} 14. Nd5 {[%clk 0:02:07]}  Qe5 {[%clk 0:01:08]} 15. Bf4 {[%clk 0:02:04]}  Qxb2 {[%clk 0:01:06]} 16. Rb1 {[%clk 0:02:03]}  Qxa2 {[%clk 0:00:37]} 17. Nxc7+ {[%clk 0:02:01]}  Kf8 {[%clk 0:00:35]} 18. Nxa8 {[%clk 0:01:53]}  Nb4 {[%clk 0:00:21]} 19. Qb3 {[%clk 0:01:48]}  Nc2+ {[%clk 0:00:17]} 20. Kf2 {[%clk 0:01:46]}  Bc5+ {[%clk 0:00:15]} 21. Kg3 {[%clk 0:01:44]}  Qa6 {[%clk 0:00:09]} 22. Qxc2 {[%clk 0:01:40]}  Qf6 {[%clk 0:00:05]} 23. Qe4 {[%clk 0:01:22]}  h6 {[%clk 0:00:05]} 24. Rxb7 {[%clk 0:01:19]}  g5 {[%clk 0:00:04]} 25. Rb8+ {[%clk 0:01:18]}  Kg7 {[%clk 0:00:02]} 26. Rxh8 {[%clk 0:01:18]}  gxf4+ {[%clk 0:00:00]} 27. Kh3 {[%clk 0:01:15]} 1-0